[Event "Live Chess"]
[Site "Chess.com"]
[Date "2023.05.20"]
[Round "-"]
[White "DerbyKnight"]
[Black "bristolunichess"]
[Result "1/2-1/2"]
[WhiteElo "1649"]
[BlackElo "1804"]
[TimeControl "300"]
[EndTime "11:46:45 PDT"]
[Termination "Game drawn by repetition"]

1. e4 {[%clk 0:04:55.9]} 1... e6 {[%clk 0:04:54.8]} 2. d4 {[%clk 0:04:53.4]}
2... d5 {[%clk 0:04:53.7]} 3. exd5 {[%clk 0:04:53.3]} 3... exd5 {[%clk
0:04:51.8]} 4. Nf3 {[%clk 0:04:53.2]} 4... Bd6 {[%clk 0:04:50.7]} 5. Bd3 {[%clk
0:04:52.7]} 5... Ne7 {[%clk 0:04:49.4]} 6. c4 {[%clk 0:04:49]} 6... dxc4 {[%clk
0:04:45.5]} 7. Bxc4 {[%clk 0:04:47.6]} 7... O-O {[%clk 0:04:44.6]} 8. O-O {[%clk
0:04:43.3]} 8... Bg4 {[%clk 0:04:34.3]} 9. Bg5 {[%clk 0:04:40.9]} 9... Nd7
{[%clk 0:04:29.9]} 10. Nbd2 {[%clk 0:04:38.4]} 10... Nb6 {[%clk 0:04:28.2]} 11.
Bb3 {[%clk 0:04:35.2]} 11... c6 {[%clk 0:04:27.1]} 12. Qc2 {[%clk 0:04:27.5]}
12... Nbd5 {[%clk 0:04:23.9]} 13. Ne5 {[%clk 0:04:24.5]} 13... Qc7 {[%clk
0:03:56.2]} 14. Nxg4 {[%clk 0:04:17.4]} 14... f6 {[%clk 0:03:48]} 15. Be3 {[%clk
0:04:04.8]} 15... Kh8 {[%clk 0:03:45]} 16. Bxd5 {[%clk 0:03:36.1]} 16... Nxd5
{[%clk 0:03:42]} 17. Qf5 {[%clk 0:03:25.3]} 17... g6 {[%clk 0:03:30.2]} 18. Qf3
{[%clk 0:03:20.5]} 18... f5 {[%clk 0:03:27.3]} 19. Nh6 {[%clk 0:03:14.7]} 19...
f4 {[%clk 0:03:03.9]} 20. Qh3 {[%clk 0:03:03.5]} 20... fxe3 {[%clk 0:02:59.3]}
21. fxe3 {[%clk 0:03:02.8]} 21... Qe7 {[%clk 0:02:09.9]} 22. Rae1 {[%clk
0:02:52]} 22... Rxf1+ {[%clk 0:02:03.1]} 23. Rxf1 {[%clk 0:02:48]} 23... Qxe3+
{[%clk 0:01:57.1]} 24. Qxe3 {[%clk 0:02:43.2]} 24... Nxe3 {[%clk 0:01:57]} 25.
Rf7 {[%clk 0:02:40.6]} 25... Rf8 {[%clk 0:01:41.4]} 26. Rxb7 {[%clk 0:02:27.3]}
26... Bf4 {[%clk 0:01:33.8]} 27. Nf7+ {[%clk 0:02:22.5]} 27... Kg8 {[%clk
0:01:32.3]} 28. Ne5 {[%clk 0:02:05.3]} 28... Nc2 {[%clk 0:01:14.1]} 29. Ndf3
{[%clk 0:01:59.8]} 29... Be3+ {[%clk 0:01:09.5]} 30. Kf1 {[%clk 0:01:50.4]}
30... Nxd4 {[%clk 0:01:08]} 31. Rxa7 {[%clk 0:01:40]} 31... g5 {[%clk 0:01:04]}
32. Nd7 {[%clk 0:01:24]} 32... Nxf3 {[%clk 0:00:51.2]} 33. Nxf8 {[%clk
0:01:17.6]} 33... Nd2+ {[%clk 0:00:48.2]} 34. Ke2 {[%clk 0:01:13.8]} 34... Bxa7
{[%clk 0:00:47.6]} 35. Kxd2 {[%clk 0:01:10]} 35... Kxf8 {[%clk 0:00:47.2]} 36.
Kd3 {[%clk 0:01:07.9]} 36... Ke7 {[%clk 0:00:46.5]} 37. Kc4 {[%clk 0:01:07.1]}
37... Kd6 {[%clk 0:00:45.6]} 38. h3 {[%clk 0:01:03.9]} 38... h5 {[%clk 0:00:45]}
39. g4 {[%clk 0:01:01.8]} 39... hxg4 {[%clk 0:00:43]} 40. hxg4 {[%clk
0:01:00.2]} 40... Be3 {[%clk 0:00:40.3]} 41. b4 {[%clk 0:00:56.6]} 41... Kc7
{[%clk 0:00:38.6]} 42. a4 {[%clk 0:00:54.9]} 42... Kb6 {[%clk 0:00:37.8]} 43.
Kd3 {[%clk 0:00:46.5]} 43... Bf4 {[%clk 0:00:35.7]} 44. Kc4 {[%clk 0:00:44.9]}
44... Kc7 {[%clk 0:00:33.1]} 45. a5 {[%clk 0:00:40.1]} 45... Kb7 {[%clk
0:00:30.3]} 46. b5 {[%clk 0:00:37.3]} 46... cxb5+ {[%clk 0:00:23.8]} 47. Kxb5
{[%clk 0:00:37.2]} 47... Be3 {[%clk 0:00:19.5]} 48. a6+ {[%clk 0:00:33]} 48...
Ka7 {[%clk 0:00:16.2]} 49. Ka5 {[%clk 0:00:32.1]} 49... Bb6+ {[%clk 0:00:13.8]}
50. Kb5 {[%clk 0:00:31]} 50... Bd4 {[%clk 0:00:11.6]} 51. Ka5 {[%clk 0:00:29.7]}
51... Bb6+ {[%clk 0:00:11.4]} 52. Kb5 {[%clk 0:00:28.7]} 52... Bc7 {[%clk
0:00:11.3]} 53. Kc6 {[%clk 0:00:25.3]} 53... Bb6 {[%clk 0:00:10.9]} 54. Kb5
{[%clk 0:00:23.4]} 1/2-1/2

[Event "Live Chess"]
[Site "Chess.com"]
[Date "2023.05.20"]
[Round "-"]
[White "CocheseUK"]
[Black "f4nomore"]
[Result "0-1"]
[WhiteElo "1062"]
[BlackElo "1370"]
[TimeControl "300"]
[EndTime "11:46:45 PDT"]
[Termination "f4nomore won on time"]

1. e4 {[%clk 0:04:55.9]} 1... d6 {[%clk 0:04:58.2]} 2. d4 {[%clk 0:04:54.6]}
2... g6 {[%clk 0:04:56.3]} 3. c4 {[%clk 0:04:51.2]} 3... Bg7 {[%clk 0:04:55.5]}
4. Nc3 {[%clk 0:04:48.2]} 4... Nf6 {[%clk 0:04:53.7]} 5. Be3 {[%clk 0:04:44.3]}
5... O-O {[%clk 0:04:49]} 6. Nf3 {[%clk 0:04:41.9]} 6... Nbd7 {[%clk 0:04:43]}
7. Be2 {[%clk 0:04:39.1]} 7... Ng4 {[%clk 0:04:35.7]} 8. Bf4 {[%clk 0:04:22.9]}
8... e5 {[%clk 0:04:32.5]} 9. dxe5 {[%clk 0:04:21.3]} 9... dxe5 {[%clk
0:04:30.6]} 10. Bg3 {[%clk 0:04:10.7]} 10... c6 {[%clk 0:04:13.3]} 11. h3 {[%clk
0:04:08.3]} 11... Nh6 {[%clk 0:04:11]} 12. Ng5 {[%clk 0:03:56.2]} 12... Qxg5
{[%clk 0:04:04.3]} 13. O-O {[%clk 0:03:51.3]} 13... Nb6 {[%clk 0:03:51.5]} 14.
c5 {[%clk 0:03:41.1]} 14... Nd7 {[%clk 0:03:38.7]} 15. b4 {[%clk 0:03:38.1]}
15... b6 {[%clk 0:03:34.1]} 16. cxb6 {[%clk 0:03:22.6]} 16... Nxb6 {[%clk
0:03:31.6]} 17. a4 {[%clk 0:03:15.8]} 17... Be6 {[%clk 0:03:21.5]} 18. Qd6
{[%clk 0:02:54.2]} 18... Rfd8 {[%clk 0:03:09.8]} 19. Qc5 {[%clk 0:02:38.6]}
19... Bf8 {[%clk 0:02:56.8]} 20. Qe3 {[%clk 0:02:33.7]} 20... Qxe3 {[%clk
0:02:53.2]} 21. fxe3 {[%clk 0:02:31.8]} 21... Bg7 {[%clk 0:02:44.7]} 22. Rfd1
{[%clk 0:02:24.7]} 22... Rxd1+ {[%clk 0:02:39.5]} 23. Rxd1 {[%clk 0:02:22.1]}
23... Nc4 {[%clk 0:02:38]} 24. Bxc4 {[%clk 0:02:13.5]} 24... Bxc4 {[%clk
0:02:35.6]} 25. Rd6 {[%clk 0:02:08]} 25... Rc8 {[%clk 0:02:30.5]} 26. Nd1 {[%clk
0:01:56.2]} 26... Bf8 {[%clk 0:02:24.5]} 27. Rd7 {[%clk 0:01:49.9]} 27... Bxb4
{[%clk 0:02:14.5]} 28. Bxe5 {[%clk 0:01:46]} 28... a5 {[%clk 0:02:07.1]} 29. Bf4
{[%clk 0:01:29.1]} 29... Be6 {[%clk 0:01:44.1]} 30. Rd3 {[%clk 0:01:13.9]} 30...
Bf8 {[%clk 0:01:39.2]} 31. Rc3 {[%clk 0:00:54.2]} 31... Bg7 {[%clk 0:01:33.9]}
32. Rc5 {[%clk 0:00:45.9]} 32... Bf8 {[%clk 0:01:26.6]} 33. Rxa5 {[%clk
0:00:40]} 33... Kh8 {[%clk 0:01:18.9]} 34. Be5+ {[%clk 0:00:34.8]} 34... Bg7
{[%clk 0:01:14.6]} 35. Bxg7+ {[%clk 0:00:31.9]} 35... Kxg7 {[%clk 0:01:13.1]}
36. Rc5 {[%clk 0:00:23]} 36... Ng8 {[%clk 0:01:10]} 37. a5 {[%clk 0:00:21.1]}
37... Ne7 {[%clk 0:01:07.7]} 38. a6 {[%clk 0:00:17.6]} 38... Rc7 {[%clk
0:00:57.1]} 39. Ra5 {[%clk 0:00:14.9]} 39... Ra7 {[%clk 0:00:51.8]} 40. Nf2
{[%clk 0:00:07]} 40... Bc4 {[%clk 0:00:49]} 41. Ng4 {[%clk 0:00:04.5]} 41...
Rxa6 {[%clk 0:00:45.3]} 42. Rxa6 {[%clk 0:00:02.2]} 42... Bxa6 {[%clk
0:00:43.3]} 43. Ne5 {[%clk 0:00:01.3]} 43... c5 {[%clk 0:00:38.5]} 0-1

[Event "Live Chess"]
[Site "Chess.com"]
[Date "2023.05.20"]
[Round "-"]
[White "wadsy27"]
[Black "McSlash1"]
[Result "1-0"]
[WhiteElo "2583"]
[BlackElo "2053"]
[TimeControl "300"]
[EndTime "11:46:53 PDT"]
[Termination "wadsy27 won by resignation"]

1. d4 {[%clk 0:04:57.7]} 1... Nf6 {[%clk 0:04:58.1]} 2. Bf4 {[%clk 0:04:54.9]}
2... g6 {[%clk 0:04:52.3]} 3. e3 {[%clk 0:04:51.1]} 3... Bg7 {[%clk 0:04:51.9]}
4. Nf3 {[%clk 0:04:50.6]} 4... O-O {[%clk 0:04:51.5]} 5. Be2 {[%clk 0:04:50.1]}
5... c5 {[%clk 0:04:51.1]} 6. c3 {[%clk 0:04:47.6]} 6... cxd4 {[%clk 0:04:50.3]}
7. exd4 {[%clk 0:04:46.1]} 7... d5 {[%clk 0:04:50.1]} 8. h3 {[%clk 0:04:43.6]}
8... Ne4 {[%clk 0:04:48.2]} 9. O-O {[%clk 0:04:42.4]} 9... Nd7 {[%clk
0:04:47.7]} 10. Nbd2 {[%clk 0:04:41.1]} 10... Ndf6 {[%clk 0:04:47.3]} 11. Nxe4
{[%clk 0:04:36.6]} 11... Nxe4 {[%clk 0:04:47.2]} 12. Qb3 {[%clk 0:04:27.5]}
12... b6 {[%clk 0:04:43.1]} 13. a4 {[%clk 0:04:25.8]} 13... Bb7 {[%clk
0:04:37.1]} 14. a5 {[%clk 0:04:24]} 14... f6 {[%clk 0:04:30.4]} 15. Nd2 {[%clk
0:04:10.4]} 15... Nxd2 {[%clk 0:04:22.8]} 16. Bxd2 {[%clk 0:04:10.3]} 16... e5
{[%clk 0:04:21.7]} 17. Bf3 {[%clk 0:03:56.3]} 17... e4 {[%clk 0:04:19.3]} 18.
Bxe4 {[%clk 0:03:55.1]} 18... f5 {[%clk 0:04:07.1]} 19. Bf3 {[%clk 0:03:54.2]}
19... Kh8 {[%clk 0:03:58.2]} 20. Rfe1 {[%clk 0:03:52.2]} 20... Qd7 {[%clk
0:03:56.8]} 21. Bg5 {[%clk 0:03:47.2]} 21... h6 {[%clk 0:03:55]} 22. Re7 {[%clk
0:03:44.6]} 22... Qc6 {[%clk 0:03:34.5]} 23. Bf4 {[%clk 0:03:39]} 23... Rac8
{[%clk 0:03:25.5]} 24. Rae1 {[%clk 0:03:36.3]} 24... g5 {[%clk 0:03:24.1]} 25.
R1e6 {[%clk 0:03:32.8]} 25... Qc4 {[%clk 0:03:07.1]} 26. Qxc4 {[%clk 0:03:29.9]}
26... dxc4 {[%clk 0:03:06.7]} 27. Be5 {[%clk 0:03:17.2]} 27... Bxe5 {[%clk
0:03:02]} 28. Rxh6+ {[%clk 0:03:15.2]} 28... Kg8 {[%clk 0:02:59.8]} 29. Bxb7
{[%clk 0:03:14.1]} 29... Rb8 {[%clk 0:02:53.3]} 30. Bd5+ {[%clk 0:03:12.3]} 1-0

[Event "Live Chess"]
[Site "Chess.com"]
[Date "2023.05.20"]
[Round "-"]
[White "GEMdzq"]
[Black "MrDodgy"]
[Result "1-0"]
[WhiteElo "2237"]
[BlackElo "2294"]
[TimeControl "300"]
[EndTime "11:47:00 PDT"]
[Termination "GEMdzq won by resignation"]

1. e4 {[%clk 0:04:58.4]} 1... e6 {[%clk 0:04:53.3]} 2. d4 {[%clk 0:04:57]} 2...
d5 {[%clk 0:04:52.5]} 3. Nc3 {[%clk 0:04:55.7]} 3... Nf6 {[%clk 0:04:49.3]} 4.
Bg5 {[%clk 0:04:53.2]} 4... dxe4 {[%clk 0:04:46.5]} 5. Nxe4 {[%clk 0:04:51.9]}
5... Be7 {[%clk 0:04:44.9]} 6. Bxf6 {[%clk 0:04:48.2]} 6... gxf6 {[%clk
0:04:41.5]} 7. Nf3 {[%clk 0:04:45.8]} 7... c5 {[%clk 0:04:39.6]} 8. Bb5+ {[%clk
0:04:36]} 8... Nc6 {[%clk 0:04:37.7]} 9. O-O {[%clk 0:04:23.2]} 9... cxd4 {[%clk
0:04:24]} 10. Nxd4 {[%clk 0:04:16]} 10... Bd7 {[%clk 0:04:18.3]} 11. Nxc6 {[%clk
0:04:08.7]} 11... bxc6 {[%clk 0:04:15.5]} 12. Bc4 {[%clk 0:03:49.6]} 12... Qa5
{[%clk 0:04:03.6]} 13. Nd6+ {[%clk 0:03:36.5]} 13... Bxd6 {[%clk 0:03:41.9]} 14.
Qxd6 {[%clk 0:03:36.4]} 14... Qe5 {[%clk 0:03:40.3]} 15. Qd2 {[%clk 0:02:50.2]}
15... Rd8 {[%clk 0:02:57.7]} 16. Rfe1 {[%clk 0:02:31.2]} 16... Qc5 {[%clk
0:02:36.4]} 17. Qf4 {[%clk 0:02:14]} 17... Ke7 {[%clk 0:02:05.5]} 18. Bb3 {[%clk
0:01:58]} 18... Rhg8 {[%clk 0:01:57.8]} 19. Rad1 {[%clk 0:01:51.8]} 19... Rg5
{[%clk 0:01:48.4]} 20. Qd4 {[%clk 0:01:41.6]} 20... Qxd4 {[%clk 0:01:33.7]} 21.
Rxd4 {[%clk 0:01:41.5]} 21... Bc8 {[%clk 0:01:30]} 22. Red1 {[%clk 0:01:37.4]}
22... Rxd4 {[%clk 0:01:24.4]} 23. Rxd4 {[%clk 0:01:37.3]} 23... Re5 {[%clk
0:01:23.4]} 24. Kf1 {[%clk 0:01:24.6]} 24... Ba6+ {[%clk 0:01:19.4]} 25. c4
{[%clk 0:01:23.8]} 25... Rc5 {[%clk 0:01:07.6]} 26. Ke2 {[%clk 0:01:14.8]} 26...
f5 {[%clk 0:01:05.3]} 27. Rh4 {[%clk 0:00:50.1]} 27... e5 {[%clk 0:00:55.4]} 28.
Kd3 {[%clk 0:00:47.1]} 28... Rd5+ {[%clk 0:00:31.3]} 29. Kc3 {[%clk 0:00:45.8]}
29... Rd8 {[%clk 0:00:26.8]} 30. Rxh7 {[%clk 0:00:44.8]} 30... Rg8 {[%clk
0:00:24.3]} 31. g3 {[%clk 0:00:43.7]} 31... c5 {[%clk 0:00:22.1]} 32. Bc2 {[%clk
0:00:40.9]} 32... Ke6 {[%clk 0:00:20]} 33. Rh6+ {[%clk 0:00:38.2]} 33... f6
{[%clk 0:00:19.2]} 34. h4 {[%clk 0:00:37.2]} 34... Rg7 {[%clk 0:00:17.3]} 35.
Rh5 {[%clk 0:00:36.1]} 35... f4 {[%clk 0:00:15.6]} 36. g4 {[%clk 0:00:33.2]}
36... Bb7 {[%clk 0:00:12.3]} 37. Bf5+ {[%clk 0:00:30.5]} 37... Ke7 {[%clk
0:00:12]} 38. g5 {[%clk 0:00:29.5]} 38... fxg5 {[%clk 0:00:10.6]} 39. hxg5
{[%clk 0:00:28.7]} 39... Rf7 {[%clk 0:00:09.1]} 40. Bg6 {[%clk 0:00:23.7]} 40...
Rg7 {[%clk 0:00:08.5]} 41. Bc2 {[%clk 0:00:20.4]} 41... Bc6 {[%clk 0:00:08.1]}
42. g6 {[%clk 0:00:19.1]} 42... Be8 {[%clk 0:00:07.5]} 43. Rxe5+ {[%clk
0:00:18.2]} 43... Kd6 {[%clk 0:00:06.3]} 44. Rd5+ {[%clk 0:00:16.4]} 1-0

[Event "Live Chess"]
[Site "Chess.com"]
[Date "2023.05.20"]
[Round "-"]
[White "raminguy"]
[Black "wot-not"]
[Result "1-0"]
[WhiteElo "1983"]
[BlackElo "1468"]
[TimeControl "300"]
[EndTime "11:47:04 PDT"]
[Termination "raminguy won by resignation"]

1. d4 {[%clk 0:04:59.6]} 1... Nf6 {[%clk 0:04:56.3]} 2. Nc3 {[%clk 0:04:59.2]}
2... d6 {[%clk 0:04:55.3]} 3. e4 {[%clk 0:04:57.9]} 3... Bg4 {[%clk 0:04:53.4]}
4. f3 {[%clk 0:04:56]} 4... Bh5 {[%clk 0:04:52.6]} 5. h4 {[%clk 0:04:54.2]} 5...
h6 {[%clk 0:04:48.3]} 6. Be3 {[%clk 0:04:50.8]} 6... Nbd7 {[%clk 0:04:42.4]} 7.
Qd2 {[%clk 0:04:49.2]} 7... e5 {[%clk 0:04:38.8]} 8. O-O-O {[%clk 0:04:47]} 8...
Be7 {[%clk 0:04:31.5]} 9. Nge2 {[%clk 0:04:39.5]} 9... O-O {[%clk 0:04:30.3]}
10. g4 {[%clk 0:04:37.5]} 10... Bg6 {[%clk 0:04:28.9]} 11. h5 {[%clk 0:04:35.3]}
11... Bh7 {[%clk 0:04:28.1]} 12. g5 {[%clk 0:04:33.4]} 12... hxg5 {[%clk
0:04:26.1]} 13. Bxg5 {[%clk 0:04:32.1]} 13... Ne8 {[%clk 0:04:16.7]} 14. Bxe7
{[%clk 0:04:30.2]} 14... Qxe7 {[%clk 0:04:15.3]} 15. Bh3 {[%clk 0:04:26.5]}
15... Rd8 {[%clk 0:03:55]} 16. Rdg1 {[%clk 0:04:25.7]} 16... Nef6 {[%clk
0:03:50.3]} 17. Qh6 {[%clk 0:04:22.7]} 17... g6 {[%clk 0:03:41.8]} 18. hxg6
{[%clk 0:04:21]} 18... Bxg6 {[%clk 0:03:38.9]} 19. Bxd7 {[%clk 0:04:15.9]} 1-0

[Event "Live Chess"]
[Site "Chess.com"]
[Date "2023.05.20"]
[Round "-"]
[White "jennybobby44"]
[Black "Davidagye"]
[Result "1-0"]
[WhiteElo "1876"]
[BlackElo "1672"]
[TimeControl "300"]
[EndTime "11:47:12 PDT"]
[Termination "jennybobby44 won by checkmate"]

1. Nf3 {[%clk 0:04:59.2]} 1... d5 {[%clk 0:04:57.1]} 2. g3 {[%clk 0:04:57.6]}
2... Nf6 {[%clk 0:04:55.2]} 3. Bg2 {[%clk 0:04:57.1]} 3... e6 {[%clk 0:04:54.4]}
4. O-O {[%clk 0:04:56.4]} 4... c5 {[%clk 0:04:54.1]} 5. d3 {[%clk 0:04:53.5]}
5... b5 {[%clk 0:04:53.2]} 6. Nbd2 {[%clk 0:04:52.2]} 6... Nc6 {[%clk
0:04:52.3]} 7. c3 {[%clk 0:04:51.2]} 7... Bd7 {[%clk 0:04:51.3]} 8. e4 {[%clk
0:04:50.3]} 8... Be7 {[%clk 0:04:46.7]} 9. e5 {[%clk 0:04:49.1]} 9... Ng8 {[%clk
0:04:45.1]} 10. d4 {[%clk 0:04:48.6]} 10... c4 {[%clk 0:04:41.8]} 11. Re1 {[%clk
0:04:42.7]} 11... a5 {[%clk 0:04:40]} 12. h4 {[%clk 0:04:40]} 12... b4 {[%clk
0:04:38.8]} 13. Nf1 {[%clk 0:04:38.9]} 13... Rb8 {[%clk 0:04:34.7]} 14. Ng5
{[%clk 0:04:30.5]} 14... h6 {[%clk 0:04:24.5]} 15. Nh3 {[%clk 0:04:22.4]} 15...
b3 {[%clk 0:04:11.5]} 16. a3 {[%clk 0:04:17.9]} 16... Nb4 {[%clk 0:04:02.5]} 17.
axb4 {[%clk 0:04:16.3]} 17... axb4 {[%clk 0:04:01.8]} 18. Bd2 {[%clk 0:04:06.8]}
18... bxc3 {[%clk 0:04:00.2]} 19. Bxc3 {[%clk 0:04:06.1]} 19... Bb4 {[%clk
0:03:57.7]} 20. Qd2 {[%clk 0:04:05.4]} 20... Bxc3 {[%clk 0:03:55.5]} 21. Qxc3
{[%clk 0:04:05.3]} 21... Ne7 {[%clk 0:03:53.4]} 22. Ne3 {[%clk 0:03:48.4]} 22...
Nc6 {[%clk 0:03:41.4]} 23. f4 {[%clk 0:03:44.4]} 23... Nb4 {[%clk 0:03:40.1]}
24. Rad1 {[%clk 0:03:37.4]} 24... Nd3 {[%clk 0:03:35.4]} 25. Rxd3 {[%clk
0:03:36.5]} 25... cxd3 {[%clk 0:03:34.4]} 26. Qxd3 {[%clk 0:03:36.4]} 26... Bb5
{[%clk 0:03:31.4]} 27. Qd2 {[%clk 0:03:31.3]} 27... Bc4 {[%clk 0:03:28.3]} 28.
f5 {[%clk 0:03:27.5]} 28... O-O {[%clk 0:03:26.4]} 29. Nxc4 {[%clk 0:03:17.5]}
29... dxc4 {[%clk 0:03:25.1]} 30. f6 {[%clk 0:03:16.7]} 30... g6 {[%clk
0:03:23]} 31. Qxh6 {[%clk 0:03:15.3]} 31... Qxd4+ {[%clk 0:03:20.6]} 32. Kh2
{[%clk 0:03:13.2]} 32... Qxb2 {[%clk 0:03:18.6]} 33. Qg7# {[%clk 0:03:11.9]} 1-0

[Event "Live Chess"]
[Site "Chess.com"]
[Date "2023.05.20"]
[Round "-"]
[White "ElectricFalcon"]
[Black "mliszewski"]
[Result "0-1"]
[WhiteElo "1066"]
[BlackElo "1885"]
[TimeControl "300"]
[EndTime "11:47:23 PDT"]
[Termination "mliszewski won by resignation"]

1. d4 {[%clk 0:04:59.6]} 1... d5 {[%clk 0:04:56.7]} 2. c4 {[%clk 0:04:59.5]}
2... e5 {[%clk 0:04:55.5]} 3. Nf3 {[%clk 0:04:59.3]} 3... e4 {[%clk 0:04:53.5]}
4. Nfd2 {[%clk 0:04:58.1]} 4... c6 {[%clk 0:04:50.9]} 5. cxd5 {[%clk 0:04:57]}
5... cxd5 {[%clk 0:04:50]} 6. Nc3 {[%clk 0:04:56.7]} 6... Nf6 {[%clk 0:04:48.7]}
7. e3 {[%clk 0:04:55.6]} 7... Be7 {[%clk 0:04:46.5]} 8. Bb5+ {[%clk 0:04:54.4]}
8... Nc6 {[%clk 0:04:44.6]} 9. O-O {[%clk 0:04:50.9]} 9... O-O {[%clk
0:04:43.6]} 10. Qa4 {[%clk 0:04:49]} 10... Bd7 {[%clk 0:04:40.2]} 11. Qb3 {[%clk
0:04:43.1]} 11... Rb8 {[%clk 0:04:37.9]} 12. Nxd5 {[%clk 0:04:41.2]} 12... Nxd5
{[%clk 0:04:35.9]} 13. Qxd5 {[%clk 0:04:40.1]} 13... a6 {[%clk 0:04:29.3]} 14.
Be2 {[%clk 0:04:34.2]} 14... Nb4 {[%clk 0:04:24.9]} 15. Qxe4 {[%clk 0:04:31.1]}
15... Bc6 {[%clk 0:04:23.8]} 16. Qg4 {[%clk 0:04:14.7]} 16... Qd6 {[%clk
0:04:05.1]} 17. Ne4 {[%clk 0:04:07.3]} 17... Qh6 {[%clk 0:03:53.4]} 18. a3
{[%clk 0:03:54.1]} 18... Nd5 {[%clk 0:03:48.1]} 19. Bd3 {[%clk 0:03:48.6]} 19...
f5 {[%clk 0:03:45.9]} 20. Qf3 {[%clk 0:03:25.8]} 20... fxe4 {[%clk 0:03:39.5]}
21. Qxe4 {[%clk 0:03:25]} 21... Nf4 {[%clk 0:03:29.2]} 22. Qxe7 {[%clk
0:03:11.3]} 22... Nxd3 {[%clk 0:03:01.6]} 23. Bd2 {[%clk 0:02:53.9]} 23... Qg6
{[%clk 0:02:56.7]} 24. e4 {[%clk 0:02:49.1]} 24... Bxe4 {[%clk 0:02:54.6]} 25.
Qxe4 {[%clk 0:02:47.9]} 25... Qxe4 {[%clk 0:02:53.4]} 26. Be3 {[%clk 0:02:38]}
26... Rf6 {[%clk 0:02:39.1]} 27. Rad1 {[%clk 0:02:11.5]} 27... Rg6 {[%clk
0:02:37.3]} 28. g3 {[%clk 0:02:06.2]} 28... h5 {[%clk 0:02:30.2]} 29. h4 {[%clk
0:02:01.7]} 29... Nxb2 {[%clk 0:02:23]} 30. Rde1 {[%clk 0:01:58.4]} 30... Qxh4
{[%clk 0:02:21.7]} 31. Bf4 {[%clk 0:01:52.1]} 31... Qxf4 {[%clk 0:02:19.9]} 32.
Kh2 {[%clk 0:01:46.5]} 32... Qxd4 {[%clk 0:02:13.7]} 33. Re3 {[%clk 0:01:41.1]}
33... Rf8 {[%clk 0:02:08.5]} 34. Rfe1 {[%clk 0:01:34.4]} 34... Rxf2+ {[%clk
0:02:04.5]} 0-1

[Event "Live Chess"]
[Site "Chess.com"]
[Date "2023.05.20"]
[Round "-"]
[White "MartinWalker4"]
[Black "chessfiction"]
[Result "0-1"]
[WhiteElo "2081"]
[BlackElo "2403"]
[TimeControl "300"]
[EndTime "11:47:26 PDT"]
[Termination "chessfiction won on time"]

1. e4 {[%clk 0:04:55.2]} 1... e6 {[%clk 0:04:58.1]} 2. d4 {[%clk 0:04:53.1]}
2... d5 {[%clk 0:04:58]} 3. Nd2 {[%clk 0:04:51.1]} 3... c5 {[%clk 0:04:55.8]} 4.
exd5 {[%clk 0:04:49.1]} 4... exd5 {[%clk 0:04:54.4]} 5. Bb5+ {[%clk 0:04:43.4]}
5... Nc6 {[%clk 0:04:49.7]} 6. Qe2+ {[%clk 0:04:37.8]} 6... Be6 {[%clk
0:04:48.3]} 7. Ngf3 {[%clk 0:04:35.8]} 7... Nf6 {[%clk 0:04:44.8]} 8. Ne5 {[%clk
0:04:25.5]} 8... Qb6 {[%clk 0:04:42.5]} 9. dxc5 {[%clk 0:03:52.5]} 9... Bxc5
{[%clk 0:04:38.1]} 10. O-O {[%clk 0:03:51.1]} 10... O-O {[%clk 0:04:32.4]} 11.
Bxc6 {[%clk 0:03:45.7]} 11... bxc6 {[%clk 0:04:32.3]} 12. Nb3 {[%clk 0:03:42.7]}
12... Bd6 {[%clk 0:04:31]} 13. Nd3 {[%clk 0:03:09.9]} 13... Rfe8 {[%clk
0:04:23.4]} 14. Qf3 {[%clk 0:03:03.9]} 14... Ne4 {[%clk 0:04:21.7]} 15. Be3
{[%clk 0:02:57.6]} 15... Qc7 {[%clk 0:04:20.7]} 16. Bf4 {[%clk 0:02:53.7]} 16...
c5 {[%clk 0:04:13.6]} 17. Bxd6 {[%clk 0:02:47.7]} 17... Qxd6 {[%clk 0:04:13.5]}
18. Nf4 {[%clk 0:02:15.5]} 18... c4 {[%clk 0:04:03.5]} 19. Nd4 {[%clk
0:01:55.5]} 19... Nd2 {[%clk 0:04:02.6]} 20. Qg3 {[%clk 0:01:53.3]} 20... Nxf1
{[%clk 0:04:01.2]} 21. Rxf1 {[%clk 0:01:51.5]} 21... Kh8 {[%clk 0:03:56.9]} 22.
c3 {[%clk 0:01:32.6]} 22... Rab8 {[%clk 0:03:52.9]} 23. Ng6+ {[%clk 0:01:27.7]}
23... hxg6 {[%clk 0:03:47.6]} 24. Qxd6 {[%clk 0:01:26.2]} 24... Rxb2 {[%clk
0:03:47.3]} 25. Re1 {[%clk 0:01:17.3]} 25... Rxa2 {[%clk 0:03:42.9]} 26. h3
{[%clk 0:01:14.9]} 26... a5 {[%clk 0:03:32.2]} 27. Nxe6 {[%clk 0:01:06.2]} 27...
fxe6 {[%clk 0:03:29.9]} 28. Rxe6 {[%clk 0:01:02.7]} 28... Rxe6 {[%clk
0:03:28.1]} 29. Qxe6 {[%clk 0:01:01.6]} 29... Rd2 {[%clk 0:03:25]} 30. Qa6
{[%clk 0:00:44.7]} 30... Rd3 {[%clk 0:03:17.1]} 31. Qxa5 {[%clk 0:00:42.6]}
31... Kh7 {[%clk 0:03:17]} 32. Kh2 {[%clk 0:00:40.7]} 32... Rd2 {[%clk
0:03:14.4]} 33. Kg3 {[%clk 0:00:39.1]} 33... Rd3+ {[%clk 0:03:13.8]} 34. f3
{[%clk 0:00:38.1]} 34... Rd2 {[%clk 0:03:12.9]} 35. Qb6 {[%clk 0:00:34.2]} 35...
Rd3 {[%clk 0:03:12.8]} 36. Qb2 {[%clk 0:00:30.6]} 36... Re3 {[%clk 0:03:09.9]}
37. Qc2 {[%clk 0:00:28.2]} 37... Rd3 {[%clk 0:03:09.8]} 38. Qxd3 {[%clk
0:00:23.7]} 38... cxd3 {[%clk 0:03:08.9]} 39. Kf2 {[%clk 0:00:22.9]} 39... Kh6
{[%clk 0:03:08.4]} 40. Ke3 {[%clk 0:00:22]} 40... d2 {[%clk 0:03:08]} 41. Kxd2
{[%clk 0:00:21]} 41... Kg5 {[%clk 0:03:07.9]} 42. Kd3 {[%clk 0:00:20]} 42... Kf4
{[%clk 0:03:07.3]} 43. Kd4 {[%clk 0:00:19]} 43... Kg3 {[%clk 0:03:07]} 44. Kxd5
{[%clk 0:00:18.1]} 44... Kxg2 {[%clk 0:03:06.9]} 45. c4 {[%clk 0:00:17.3]} 45...
Kxf3 {[%clk 0:03:06.8]} 46. c5 {[%clk 0:00:16.5]} 46... g5 {[%clk 0:03:06.7]}
47. c6 {[%clk 0:00:15.6]} 47... g4 {[%clk 0:03:06.6]} 48. c7 {[%clk 0:00:14.7]}
48... gxh3 {[%clk 0:03:03.4]} 49. c8=Q {[%clk 0:00:13]} 49... h2 {[%clk
0:03:03.3]} 50. Qh3+ {[%clk 0:00:11.1]} 50... Kf4 {[%clk 0:03:01.4]} 51. Qxh2+
{[%clk 0:00:09.8]} 51... Kf5 {[%clk 0:03:00.1]} 52. Qh4 {[%clk 0:00:07.2]} 52...
g5 {[%clk 0:03:00]} 53. Qg3 {[%clk 0:00:06.1]} 53... g4 {[%clk 0:02:59.3]} 54.
Qe5+ {[%clk 0:00:03.4]} 54... Kg6 {[%clk 0:02:58.4]} 55. Ke6 {[%clk 0:00:02.6]}
55... g3 {[%clk 0:02:57.7]} 56. Qf5+ {[%clk 0:00:02]} 56... Kh6 {[%clk
0:02:56.9]} 57. Qg4 {[%clk 0:00:00.1]} 57... g2 {[%clk 0:02:56.8]} 0-1